bitfinex/quotes_SOLUSD_20240712
["timestamp","ask_amount","ask_price","bid_price","bid_amount"]
[1720748105142,29.19,135.8,135.75,0.34]
[1720748105441,7.3649,135.78,135.74,1.47059589]
[1720748105618,7.3649,135.78,135.74,10.0]
[1720748105823,7.3646,135.79,135.74,10.0]
[1720748106215,36.5539,135.8,135.74,10.0]
[1720748106729,29.19,135.8,135.75,1.47300572]
[1720748108129,29.19,135.82,135.76,10.17]
[1720748108327,29.19,135.82,135.77,1.64278873]
[1720748109236,36.5512,135.85,135.79,10.0]
[1720748109446,7.3603,135.87,135.81,10.0]
[1720748109628,7.3605,135.86,135.81,10.0]
[1720748109945,29.19,135.87,135.81,10.0]
[1720748110124,29.19,135.87,135.8,1.81239456]
[1720748110324,7.361,135.85,135.8,46.81239456]
[1720748110518,7.3617,135.84,135.8,46.81239456]
[1720748110838,7.3617,135.84,135.8,45.34]
[1720748111022,7.3617,135.84,135.79,10.0]
[1720748113033,29.19,135.85,135.79,10.0]
[1720748113238,7.3603,135.87,135.81,10.0]
[1720748113420,49.19,135.86,135.8,0.17]
[1720748113818,7.3626,135.82,135.77,10.0]
[1720748114024,7.3621,135.83,135.78,0.34]
[1720748114435,29.0521,135.84,135.78,0.34]
[1720748115719,29.0521,135.84,135.79,10.0]
[1720748116817,29.0521,135.84,135.79,17.3641]
[1720748117051,56.5506,135.86,135.8,1.68021788]
[1720748117423,49.19,135.86,135.8,9.04391788]
[1720748117621,29.19,135.86,135.81,10.0]
[1720748117846,29.19,135.86,135.82,1.34049826]
[1720748118616,36.5506,135.86,135.82,1.34049826]
[1720748118821,7.3612,135.85,135.82,1.34049826]
[1720748119138,36.5507,135.86,135.82,1.34049826]
[1720748119319,36.5507,135.86,135.81,10.0]
[1720748119320,7.3616,135.84,135.8,0.34]
[1720748119522,7.3616,135.84,135.8,1.76241891]
[1720748119729,7.3627,135.82,135.79,10.0]
[1720748119932,7.3623,135.83,135.79,10.0]
[1720748120126,36.5516,135.84,135.8,1.42220942]
[1720748120332,7.3612,135.85,135.8,1.42220942]
[1720748121334,36.5506,135.86,135.81,10.0]
[1720748121541,29.19,135.88,135.82,1.5970665]
[1720748121754,6.1871,135.93,135.83,11.59710768]
[1720748121925,7.3589,135.89,135.84,0.17]
[1720748122130,7.3595,135.88,135.83,11.59710768]
[1720748122354,7.3599,135.87,135.83,11.59710768]
[1720748123237,7.3599,135.87,135.83,0.17]
[1720748123622,7.3599,135.87,135.83,10.17]
[1720748123827,36.5495,135.88,135.83,0.17]
[1720748124036,7.36,135.87,135.83,0.17]
[1720748124249,29.19,135.88,135.83,10.17]
[1720748124432,36.5485,135.9,135.85,10.0]
[1720748124636,7.3589,135.89,135.84,0.17]
[1720748124848,7.3568,135.93,135.87,10.0]
[1720748125148,36.5472,135.92,135.87,11.46900153]
[1720748125445,36.5472,135.92,135.87,10.0]
[1720748126035,7.3556,135.95,135.89,10.0]
[1720748126242,34.32763111,135.97,135.89,16.6473]
[1720748126243,36.5455,135.96,135.89,16.6473]
[1720748126425,36.5455,135.96,135.91,10.0]
[1720748126849,29.19,135.96,135.92,1.13940562]
[1720748127044,7.3547,135.97,135.92,1.30940562]
[1720748127356,7.3529,136.0,135.94,10.0]
[1720748127563,36.5429,136.0,135.95,1.13915418]
[1720748128238,7.3535,135.99,135.95,1.13915418]
[1720748128856,29.19,135.98,135.93,1.47088992]
[1720748129152,36.5452,135.96,135.91,0.17]
[1720748129360,29.19,135.96,135.91,0.17]
[1720748129537,29.19,135.96,135.9,0.34]
[1720748129734,36.5452,135.96,135.9,10.34]
[1720748130460,7.3571,135.93,135.89,6.6473]
[1720748130758,36.5473,135.92,135.86,16.2679]
[1720748130937,7.3584,135.9,135.86,6.2679]
[1720748131132,7.3589,135.89,135.84,11.47102055]
[1720748131767,36.5484,135.9,135.84,11.47102055]
[1720748132271,36.5484,135.9,135.84,10.0]
[1720748132437,29.19,135.9,135.84,17.3613]
[1720748132639,40.5697,135.95,135.84,17.3613]
[1720748132640,7.3574,135.92,135.84,17.3613]
[1720748133053,7.3562,135.94,135.87,17.3599]
[1720748133262,39.0924,135.96,135.89,10.0]
[1720748133263,7.3556,135.95,135.89,10.0]
[1720748133456,7.3552,135.96,135.89,17.3588]
[1720748133639,7.3546,135.97,135.9,17.358]
[1720748133840,7.3546,135.97,135.92,10.0]
[1720748134450,7.3551,135.96,135.91,0.17]
[1720748134644,7.3561,135.94,135.88,10.0]
[1720748134854,7.3561,135.94,135.89,0.34]
[1720748135244,7.3558,135.95,135.89,0.34]
[1720748135449,16.2089,135.98,135.9,10.0]
[1720748135654,7.3553,135.96,135.91,0.34]
[1720748136766,18.3834,136.0,135.93,10.0]
[1720748137079,7.3539,135.99,135.94,1.46950626]
[1720748138040,7.354,135.98,135.94,1.46950626]
[1720748138274,33.6844264,136.01,135.94,1.46950626]
[1720748138275,7.3531,136.0,135.97,10.0]
[1720748138448,0.8544264,136.01,135.97,10.0]
[1720748139153,0.8544264,136.01,135.96,1.4706584]
[1720748139550,0.8544264,136.01,135.97,10.17]
[1720748139960,0.8544264,136.01,135.98,1.47044212]
[1720748140670,0.8544264,136.01,135.99,10.0]
[1720748140873,0.8544264,136.01,136.0,0.17]
[1720748143877,0.8544264,136.01,136.0,0.34]
[1720748145667,0.8544264,136.01,135.99,16.0134]
[1720748145874,0.8544264,136.01,136.0,1.46847816]
[1720748146866,0.8544264,136.01,135.99,16.0134]
[1720748147074,0.8544264,136.01,135.99,17.4836933]
[1720748147568,0.8544264,136.01,135.97,10.0]
[1720748147773,0.8544264,136.01,135.96,1.46996835]
[1720748147958,0.8544264,136.01,135.96,1.47064681]
[1720748148152,8.2069264,136.01,135.97,10.0]
[1720748148380,0.8544264,136.01,135.97,10.0]
[1720748148556,0.8544264,136.01,135.98,1.47066464]
[1720748150481,0.8544264,136.01,135.97,10.34]
[1720748150677,0.8544264,136.01,135.98,0.34]
[1720748151474,0.8544264,136.01,135.99,10.0]
[1720748151979,0.8544264,136.01,136.0,1.77822958]
[1720748152182,0.8544264,136.01,136.0,9.13112958]
[1720748152760,0.8544264,136.01,136.0,1.77822958]
[1720748153385,0.8544264,136.01,135.99,10.0]
[1720748153685,0.8544264,136.01,135.99,17.3532]
[1720748154459,0.8544264,136.01,135.99,10.0]
[1720748154665,0.8544264,136.01,136.0,0.34]
[1720748155161,0.8544264,136.01,135.99,10.0]
[1720748155891,0.8544264,136.01,136.0,0.17]
[1720748156782,29.12,136.06,136.01,10.0]
[1720748156985,29.12,136.06,136.0,0.34]
[1720748158369,29.12,136.04,136.0,0.34]
[1720748158984,36.4698,136.06,136.0,0.34]
[1720748160067,7.3486,136.08,136.02,17.3515]
[1720748160261,7.3493,136.07,136.01,18.3801]
[1720748160463,29.12,136.08,136.0,20.34]
[1720748160464,7.3497,136.06,136.0,20.34]
[1720748160781,15.3347,136.1,136.06,10.0]
[1720748160985,0.39594789,136.13,136.06,10.0]
[1720748161290,0.39594789,136.13,136.08,10.0]
[1720748161463,0.39594789,136.13,136.09,1.46926183]
[1720748161658,7.74194789,136.13,136.08,10.0]
[1720748161990,7.74194789,136.13,136.07,1.80948301]
[1720748162287,7.74204789,136.13,136.08,10.0]
[1720748162486,0.39594789,136.13,136.09,1.63935184]
[1720748163378,0.39594789,136.13,136.06,10.0]
[1720748163566,7.3474,136.11,136.04,35.7267]
[1720748163891,7.3474,136.11,136.01,53.1484]
[1720748163892,36.4669,136.12,136.06,10.0]
[1720748164261,29.12,136.12,136.04,10.0]
[1720748164486,29.12,136.12,136.02,7.3513]
[1720748164487,29.12,136.1,136.02,10.0]
[1720748164690,7.3491,136.07,136.03,0.52869999]
[1720748164863,29.12,136.1,136.01,6.3882]
[1720748164864,28.62,136.08,136.01,6.3882]
[1720748165065,29.12,136.08,136.01,6.3882]
[1720748165272,24.5594,136.11,136.02,10.0]
[1720748165483,29.12,136.09,136.04,10.0]
[1720748165683,7.3491,136.07,136.02,10.0]
[1720748165877,7.3491,136.07,136.01,6.3882]
[1720748166385,7.3487,136.08,136.02,10.0]
[1720748166982,36.4681,136.09,136.04,10.0]
[1720748167170,29.12,136.09,136.04,10.0]
[1720748167364,7.3476,136.1,136.04,10.0]
[1720748167568,7.3479,136.1,136.05,1.46697276]
[1720748167779,36.4673,136.11,136.05,1.46697276]
[1720748167977,29.12,136.11,136.05,1.46697276]
[1720748168391,7.3484,136.09,136.03,0.34]
[1720748168602,7.3484,136.09,136.04,0.17]
[1720748168774,29.12,136.11,136.04,10.17]
[1720748169171,36.4671,136.11,136.04,17.5206]
[1720748169373,36.4671,136.11,136.06,10.0]
[1720748169596,7.3475,136.1,136.04,10.17]
[1720748169799,7.3475,136.1,136.05,0.17]
[1720748169968,7.3475,136.1,136.05,1.63975425]
[1720748170173,7.3485,136.09,136.04,11.46975425]
[1720748170896,29.12,136.11,136.05,1.46964621]
[1720748171187,7.3479,136.1,136.04,11.4698877]
[1720748171397,29.12,136.09,136.01,6.3882]
[1720748171598,29.12,136.09,136.0,1.47036357]
[1720748171599,7.3503,136.05,136.0,1.47036357]
[1720748171908,29.12,136.05,136.01,10.0]
[1720748172200,7.3502,136.06,135.99,17.3533]
[1720748172376,29.12,136.07,136.01,10.0]
[1720748172575,40.549,136.1,136.01,10.0]
[1720748172788,7.3503,136.05,135.99,10.0]
[1720748172980,7.3503,136.05,135.99,11.47039657]
[1720748173176,7.3497,136.06,135.99,18.82379657]
[1720748173601,7.3503,136.05,135.99,11.47039657]
[1720748173779,7.3513,136.03,135.97,16.6373]
[1720748173979,7.3527,136.01,135.94,10.0]
[1720748174295,7.3527,136.01,135.94,17.3561]
[1720748174498,40.5545,136.06,135.94,10.0]
[1720748174499,7.3531,136.0,135.94,10.0]
[1720748174698,40.5545,136.06,135.94,10.0]
[1720748174897,7.3528,136.01,135.94,17.356]
[1720748175196,7.3519,136.02,135.94,17.356]
[1720748175410,7.3525,136.01,135.94,10.0]
[1720748175786,7.3518,136.03,135.96,10.0]
[1720748176096,43.45548621,136.06,135.94,35.746]
[1720748176399,7.3525,136.01,135.94,35.746]
[1720748176806,7.3525,136.01,135.94,28.39]
[1720748177695,21.27548621,136.06,135.96,10.0]
[1720748177874,7.3508,136.04,135.97,0.34]
[1720748178074,26.8514,136.03,135.97,0.34]
[1720748178304,19.5,136.03,135.97,0.34]
[1720748178494,7.3508,136.04,135.99,10.0]
[1720748178691,7.3503,136.05,135.99,10.0]
[1720748178892,7.3508,136.04,135.98,1.47047046]
[1720748179089,7.3513,136.03,135.98,1.47047046]
[1720748179477,7.3509,136.04,135.99,1.47052482]
[1720748179677,7.3509,136.04,135.98,1.47051275]
[1720748179882,7.3509,136.04,135.99,1.4705297]
[1720748180296,7.3513,136.03,135.98,1.47054486]
[1720748180797,7.3518,136.02,135.97,11.81055901]
[1720748180978,22.18,136.04,135.97,0.17]
[1720748181184,22.18,136.04,135.93,44.9663]
[1720748181185,20.0,136.03,135.93,44.9663]
[1720748181379,7.3536,135.99,135.93,44.9663]
[1720748181585,15.319,136.0,135.93,10.0]
[1720748181797,37.499,136.0,135.91,10.0]
[1720748182187,7.3549,135.97,135.9,31.8541]
[1720748182507,22.18,135.98,135.9,6.1011]
[1720748182809,7.356,135.95,135.88,10.0]
[1720748183007,7.356,135.95,135.88,18.83086084]
[1720748183179,7.3552,135.96,135.89,7.3586]
[1720748183704,7.3546,135.97,135.9,1.47144433]
[1720748183885,51.1442,135.99,135.9,10.0]
[1720748184085,20.0,135.98,135.9,10.0]
[1720748184805,7.3546,135.97,135.9,11.47133605]
[1720748185104,42.18,135.98,135.88,17.3592]
[1720748185290,7.3556,135.95,135.89,0.17]
[1720748185491,7.3551,135.96,135.89,7.5288]
[1720748186810,7.3558,135.95,135.88,17.3592]
[1720748187007,7.3568,135.93,135.86,33.4615]
[1720748187299,18.3871,135.97,135.86,16.1011]
[1720748187494,20.0,135.96,135.86,16.1011]
[1720748187806,42.18,135.96,135.86,16.1011]
[1720748188005,7.3561,135.94,135.88,10.0]
[1720748188207,7.3558,135.95,135.88,17.3594]
[1720748188595,7.69923753,135.98,135.9,28.3953]
[1720748188908,7.3544,135.98,135.91,8.74251888]
[1720748190391,7.69738078,136.02,135.91,8.74251888]
[1720748190392,7.69738078,136.02,135.93,10.0]
[1720748190714,18.3814,136.01,135.92,22.3268]
[1720748190888,18.3814,136.01,135.92,6.0019]
[1720748191089,7.3551,135.96,135.92,6.0019]
[1720748191284,18.3814,136.01,135.89,17.3584]
[1720748191285,56.6422,135.99,135.89,16.447]
[1720748191486,56.6422,135.99,135.89,10.0]
[1720748191487,40.5667,135.97,135.89,10.0]
[1720748191690,18.3867,135.97,135.88,10.0]
[1720748191993,7.3565,135.94,135.87,7.3596]
[1720748192206,18.3867,135.97,135.86,35.7608]
[1720748192514,7.3572,135.93,135.86,35.7608]
[1720748192709,7.3574,135.92,135.86,10.0]
[1720748192942,7.3593,135.89,135.85,6.447]
[1720748193205,7.3593,135.89,135.83,10.0]
[1720748194220,16.1764,135.92,135.85,10.0]
[1720748194722,16.1764,135.92,135.81,16.2175]
[1720748194723,7.3581,135.91,135.84,25.7643]
[1720748195027,38.3564,135.92,135.83,11.47210358]
[1720748195325,7.3589,135.89,135.82,7.3622]
[1720748195815,7.3596,135.88,135.81,41.988]
[1720748196019,7.359,135.89,135.82,8.83087176]
[1720748196922,7.3584,135.9,135.83,17.532]
[1720748197113,7.3584,135.9,135.84,1.46825555]
[1720748197324,7.3578,135.91,135.84,8.82965555]
[1720748197501,7.3574,135.92,135.85,17.7007]
[1720748197697,32.76,135.95,135.87,10.0]
[1720748197891,16.4679,135.96,135.88,1.47170705]
[1720748198118,7.3562,135.94,135.88,1.47170705]
[1720748198311,7.3557,135.95,135.89,10.0]
[1720748198615,7.3561,135.94,135.89,10.0]
[1720748199025,7.3558,135.95,135.89,10.0]
[1720748199228,7.3541,135.98,135.91,10.0]
[1720748199433,7.3545,135.97,135.91,10.0]
[1720748199729,7.3545,135.97,135.91,11.47127014]
[1720748200319,7.3542,135.98,135.91,18.82867014]
[1720748200635,7.3542,135.98,135.92,0.17]
[1720748200815,7.3538,135.99,135.93,10.0]
[1720748201122,7.3538,135.99,135.92,1.81108716]
[1720748201433,33.6373,136.02,135.92,1.81108716]
[1720748201434,7.3541,135.98,135.92,1.81108716]
[1720748201809,7.3546,135.97,135.92,1.81108716]
[1720748202116,7.3552,135.96,135.91,10.0]
[1720748202506,40.5628,136.0,135.88,34.8114]
[1720748202710,42.18,135.99,135.88,34.8114]
[1720748202922,20.0,135.99,135.9,10.0]
[1720748203225,20.0,135.99,135.88,34.8114]
[1720748203226,42.18,135.99,135.88,34.8114]
[1720748203805,7.3552,135.96,135.9,10.0]
[1720748204133,7.3552,135.96,135.9,10.56296292]
[1720748204515,7.3547,135.97,135.9,10.56296292]
[1720748205225,7.3547,135.97,135.9,18.82963655]
[1720748205426,7.3547,135.97,135.91,0.17]
[1720748205741,7.3547,135.97,135.9,17.3583]
[1720748206737,7.3541,135.98,135.92,10.0]
[1720748206933,20.0,135.99,135.94,10.0]
[1720748207138,20.0,136.0,135.94,10.0]
[1720748207349,7.3525,136.01,135.94,17.356]
[1720748207515,7.352,136.02,135.95,15.56216268]
[1720748207715,7.352,136.02,135.96,1.47074601]
[1720748207930,7.3514,136.03,135.97,0.17]
[1720748208138,7.3508,136.04,135.98,10.0]
[1720748208630,7.3513,136.03,135.98,10.0]
[1720748209136,7.3518,136.02,135.98,10.0]
[1720748209732,7.3513,136.03,135.98,10.0]
[1720748210115,7.3518,136.02,135.97,0.34]
[1720748210533,7.3515,136.03,135.98,10.0]
[1720748210919,7.3519,136.02,135.97,0.34]
[1720748211132,18.3763,136.05,135.96,10.0]
[1720748211447,19.02736654,136.08,135.96,18.387]
[1720748211621,7.3508,136.04,135.98,10.0]
[1720748211821,7.3504,136.05,135.98,10.0]
[1720748212018,16.04941387,136.08,135.98,28.3846]
[1720748212326,7.69372626,136.08,135.98,10.0]
[1720748212524,7.3511,136.04,135.98,10.0]
[1720748212946,7.3513,136.03,135.98,10.0]
[1720748213536,7.3519,136.02,135.97,0.17]
[1720748213741,7.3515,136.03,135.97,0.34]
[1720748213942,7.3515,136.03,135.98,10.0]
[1720748214833,7.3507,136.05,135.98,17.3538]
[1720748215139,7.3508,136.04,135.98,10.0]
[1720748215943,7.3508,136.04,135.97,7.6941]
[1720748215944,7.3514,136.03,135.97,0.34]
[1720748216239,22.18,136.05,135.95,6.3957]
[1720748216428,7.353,136.0,135.95,6.3957]
[1720748216622,7.3513,136.03,135.96,7.3548]
[1720748216830,20.0,136.04,135.98,10.0]
[1720748217145,27.3509,136.04,135.98,10.0]
[1720748217442,32.76,136.05,135.98,10.0]
[1720748217443,7.3513,136.03,135.98,10.0]
[1720748217956,32.76,136.05,135.98,10.0]
[1720748218243,32.76,136.05,135.96,18.3874]
[1720748218244,7.3524,136.01,135.96,10.0]
[1720748218425,7.3524,136.01,135.95,6.3957]
[1720748218736,32.76,136.05,135.95,6.3957]
[1720748218737,7.3539,135.99,135.95,6.3957]
[1720748218923,18.3772,136.04,135.95,16.3957]
[1720748219131,7.3519,136.02,135.96,8.82504472]
[1720748219326,7.3519,136.02,135.96,7.3551]
[1720748219546,7.3519,136.02,135.95,23.7513]
[1720748219838,73.3159,136.05,135.95,6.3957]
[1720748220031,7.3529,136.0,135.95,6.3957]
[1720748220626,7.3535,135.99,135.95,6.3957]
[1720748220831,7.3533,136.0,135.95,6.3957]
[1720748221025,7.3533,136.0,135.95,16.3957]
[1720748221222,7.3537,135.99,135.95,6.3957]
[1720748221441,7.353,136.0,135.95,6.3957]
[1720748221835,16.1893,136.02,135.92,6.3544]
[1720748222033,7.3543,135.98,135.92,6.3544]
[1720748223042,16.1893,136.02,135.93,10.0]
[1720748223348,20.0,136.01,135.93,10.0]
[1720748223529,27.3529,136.01,135.94,7.3558]
[1720748223731,27.3525,136.01,135.95,10.0]
[1720748223930,7.352,136.02,135.95,17.3555]
[1720748225248,7.3524,136.01,135.94,7.5259]
[1720748225645,7.3524,136.01,135.95,10.0]
[1720748226433,7.3517,136.03,135.96,7.355]
[1720748226631,29.14,136.02,135.97,17.354]
[1720748226945,29.14,136.02,135.98,7.5239]
[1720748227124,29.14,136.04,135.98,8.27291229]
[1720748227318,29.14,136.04,135.99,0.74895721]
[1720748227546,29.14,136.04,135.98,1.03927594]
[1720748227827,36.4911,136.04,135.99,10.0]
[1720748228153,29.14,136.04,135.99,10.0]
[1720748228329,29.14,136.04,135.99,16.5272]
[1720748228643,7.3504,136.05,135.99,16.5272]
[1720748229146,7.3504,136.05,136.0,0.37804831]
[1720748229519,26.4136479,136.08,135.99,6.5272]
[1720748229749,7.3509,136.04,135.99,6.5272]
[1720748230046,26.4136479,136.08,136.0,10.0]
[1720748230355,20.0,136.07,136.01,0.17]
[1720748230528,7.3498,136.06,136.01,0.17]
[1720748230851,7.3493,136.07,136.02,10.0]
[1720748231029,7.3493,136.07,136.01,0.17]
[1720748231227,7.3496,136.06,136.01,0.17]
[1720748231432,7.3496,136.06,136.0,0.17]
[1720748231650,28.92136349,136.1,136.0,10.34]
[1720748232148,7.3499,136.06,136.0,10.34]
[1720748232449,7.3499,136.06,136.0,17.6929]
[1720748232641,7.3499,136.06,136.02,10.0]
[1720748232844,15.0397204,136.1,136.04,10.0]
[1720748233048,0.39594789,136.13,136.05,7.08152838]
[1720748233342,7.3468,136.12,136.06,10.0]
[1720748233532,0.39594789,136.13,136.07,1.06792138]
[1720748233732,0.39594789,136.13,136.08,0.72786806]
[1720748234045,7.74184789,136.13,136.08,0.72786806]
[1720748234422,0.39594789,136.13,136.07,0.75484597]
[1720748234627,0.39594789,136.13,136.06,11.46964711]
[1720748234824,18.76094789,136.13,136.05,23.9486788]
[1720748235133,7.3468,136.12,136.06,10.17]
[1720748235337,7.3468,136.12,136.07,0.17]
[1720748235646,0.39594789,136.13,136.07,7.5187]
[1720748235847,0.39594789,136.13,136.08,10.17]
[1720748236149,7.74194789,136.13,136.08,10.0]
[1720748236448,0.39594789,136.13,136.09,1.46924704]
[1720748237257,7.74184789,136.13,136.09,1.46924704]
[1720748237547,7.74184789,136.13,136.08,10.0]
[1720748237933,7.3471,136.11,136.07,0.17]
[1720748238131,7.3471,136.11,136.06,10.0]
[1720748238339,0.39594789,136.13,136.05,22.479]
[1720748238340,7.3481,136.09,136.05,22.479]
[1720748238548,7.3479,136.1,136.05,22.479]
[1720748238849,7.348,136.09,136.05,22.479]
[1720748239643,18.76114789,136.13,136.05,22.479]
[1720748239834,20.0,136.12,136.07,10.0]
[1720748240235,20.0,136.12,136.06,0.17]
[1720748240437,7.3481,136.09,136.05,22.479]
[1720748240649,7.3486,136.08,136.05,6.1835]
[1720748241038,22.1,136.1,136.02,15.6533]
[1720748241243,7.3504,136.05,136.01,6.5711]
[1720748241432,7.3497,136.06,136.01,6.5711]
[1720748241951,7.3497,136.06,136.02,0.96409827]
[1720748242454,7.3497,136.06,136.02,1.33092768]
[1720748242750,7.3497,136.06,136.01,16.5711]
[1720748242959,7.3492,136.07,136.02,0.4682782]
[1720748243133,18.3679,136.11,136.03,10.0]
[1720748243334,7.3484,136.09,136.04,1.46991483]
[1720748243551,20.0,136.08,136.04,1.46991483]
[1720748243750,15.3343,136.12,136.05,10.0]
[1720748243954,7.3479,136.1,136.05,10.0]
[1720748244831,0.39594789,136.13,136.04,0.17]
[1720748244832,18.3668,136.12,136.04,0.17]
[1720748245036,18.3668,136.12,136.03,10.0]
[1720748245232,7.3489,136.08,136.03,10.0]
[1720748245755,7.3482,136.09,136.03,10.0]
[1720748246573,7.3477,136.1,136.05,10.0]
[1720748246867,0.39594789,136.13,136.06,17.3496]
[1720748247155,7.3464,136.12,136.07,0.17]
[1720748247357,7.3464,136.12,136.07,0.69376285]
[1720748247659,7.74204789,136.13,136.07,0.86376285]
[1720748247865,0.39594789,136.13,136.08,10.0]
[1720748248049,0.39594789,136.13,136.09,0.52390991]
[1720748248248,0.39594789,136.13,136.09,0.83707263]
[1720748248843,20.39594789,136.13,136.09,0.83707263]
[1720748249056,27.74184789,136.13,136.09,0.83707263]
[1720748249361,0.39594789,136.13,136.12,10.0]
[1720748249663,0.39594789,136.13,136.12,10.83683231]
[1720748249846,0.39594789,136.13,136.12,0.83683231]
[1720748250043,0.39594789,136.13,136.11,15.8424]
[1720748250044,0.39594789,136.13,136.09,10.0]
[1720748250954,7.3464,136.12,136.08,6.4899]
[1720748251136,0.39594789,136.13,136.08,6.4899]
[1720748251433,7.74194789,136.13,136.08,6.4899]
[1720748251936,7.3466,136.12,136.08,6.4899]
[1720748252138,7.3473,136.11,136.05,10.0]
[1720748252758,7.3465,136.12,136.07,10.0]
[1720748253161,7.74204789,136.13,136.07,10.0]
[1720748253370,20.0,136.12,136.08,1.46959851]
[1720748254652,27.3464,136.12,136.06,0.17]
[1720748254956,20.0,136.12,136.06,0.34]
[1720748255165,7.3473,136.11,136.06,0.34]
[1720748255655,7.3466,136.12,136.06,0.34]
[1720748255863,0.39594789,136.13,136.09,10.0]
[1720748256365,0.39594789,136.13,136.07,10.17]
[1720748256553,36.83184789,136.13,136.07,10.17]
[1720748256936,29.48594789,136.13,136.07,17.5191]
[1720748257454,36.83184789,136.13,136.07,17.5191]
[1720748257659,36.83184789,136.13,136.07,10.17]
[1720748258163,36.83184789,136.13,136.08,0.52386405]
[1720748259168,36.83184789,136.13,136.07,10.17]
[1720748259765,29.48594789,136.13,136.09,10.0]
[1720748260165,36.83184789,136.13,136.08,0.17]
[1720748260347,36.83184789,136.13,136.07,10.17]
[1720748260666,29.48594789,136.13,136.08,0.17]
[1720748261057,29.48594789,136.13,136.08,7.5185]
[1720748261359,29.48594789,136.13,136.09,10.17]
[1720748261675,0.39594789,136.13,136.11,10.0]
[1720748261965,0.8544264,136.15,136.14,7.3453]
[1720748262452,0.8544264,136.15,136.14,7.5153]
[1720748262653,0.8544264,136.15,136.14,7.6853]
[1720748263353,34.7860264,136.21,136.16,10.0]
[1720748263561,27.4444264,136.21,136.16,10.0]
[1720748263746,27.4444264,136.21,136.17,1.16370443]
[1720748263951,7.3405,136.23,136.17,1.16370443]
[1720748263952,36.4305,136.23,136.17,1.16370443]
[1720748264344,29.09,136.23,136.18,10.0]
[1720748264554,0.89808054,136.28,136.2,10.0]
[1720748264758,29.09,136.26,136.21,0.34]
[1720748264947,29.09,136.26,136.21,1.80803743]
[1720748265262,29.09,136.26,136.21,1.46803743]
[1720748266565,7.339,136.26,136.21,1.46803743]
[1720748266773,7.3394,136.25,136.19,6.2694]
[1720748267069,7.3389,136.26,136.2,10.17]
[1720748267264,20.0,136.25,136.2,10.44436034]
[1720748267448,20.0,136.25,136.19,6.4394]
[1720748267650,20.0,136.25,136.2,10.17]
[1720748267861,0.89808054,136.28,136.22,10.0]
[1720748268069,8.23598054,136.28,136.22,10.0]
[1720748268244,20.0,136.27,136.22,10.0]
[1720748268552,20.0,136.27,136.23,0.72751506]
[1720748270055,20.0,136.27,136.24,0.17]
[1720748270249,20.0,136.27,136.23,0.72751506]
[1720748270250,28.23598054,136.28,136.23,0.72751506]
[1720748270552,28.23598054,136.28,136.21,7.5115]
[1720748270749,28.23598054,136.28,136.22,10.17]
[1720748270967,7.3383,136.27,136.22,0.17]
[1720748271174,7.3383,136.27,136.21,0.34]
[1720748271684,20.89808054,136.28,136.21,0.34]
[1720748271685,7.339,136.26,136.21,0.34]
[1720748272981,20.89808054,136.28,136.23,10.0]
[1720748273274,0.89808054,136.28,136.23,17.3404]
[1720748273451,0.89808054,136.28,136.24,0.34]